Cogmind - Beta 9.3 @@@ ROGUE MODE // 2019.12.17 @ 05:47:23 // Winter2019/RPGLIKE Player: spruce (@macklemurr) Result: Destroyed by G-50 Soldier with Heavy Laser Performance ------------- Evolutions (5) 2500 Regions Visited (20) 4000 Robots Destroyed (246) 1230 Value Destroyed (9586) 9586 Prototype IDs (43) 860 Alien Tech Used (0) 0 Bonus (5233) 5233 TOTAL SCORE: 23409 Bonus ------- High Alert Combat Kills 1520 Follower Combat Kills 2666 Entered Garrisons 400 Used RIF Installer 1000 Network Hubs Disabled 800 Built Enhanced Grunts 300 A7 Reached Mainframe 300 Met R17 at Cetus 500 Friendly Fire -2253 Cogmind --------- Core Integrity 0/1500 Matter 251/350 Energy 25/420 System Corruption 6% Temperature Cool (36) Movement Flying (111) Ox1 Location -5/Factory Parts ------- > --- POWER (2) -------- Light Antimatter Reactor Quantum Reactor > --- PROPULSION (4) --- Field Propulsion Drive Field Propulsion Drive Field Propulsion Drive Field Propulsion Drive > --- UTILITY (6) ------ Advanced Signal Interpreter Experimental Targeting Computer EM Dispersion Field Improved Remote Force Field Improved Hacking Suite Advanced System Shield > --- WEAPON (4) ------- Advanced Variable Charge Gun EMDS Improved KE Penetrator > --- INVENTORY (6) ---- Long-range Terrain Scanner Quantum Capacitor Improved Maneuvering Thrusters Experimental Phase Shifter Improved Cloaking Device Peak State ------------ > --- POWER ------------ Light Antimatter Reactor Quantum Reactor > --- PROPULSION ------- Field Propulsion Drive Field Propulsion Drive Field Propulsion Drive Field Propulsion Drive > --- UTILITY ---------- Advanced Signal Interpreter Experimental Targeting Computer Experimental Phase Shifter Improved Remote Force Field Improved Hacking Suite Advanced System Shield > --- WEAPON ----------- Advanced Variable Charge Gun EMDS Improved KE Penetrator > --- INVENTORY -------- Long-range Terrain Scanner Improved Maneuvering Thrusters Improved Cloaking Device EM Dispersion Field Signal Generator [Rating: 117] Favorites ----------- Power Light Nuclear Core Engine Light Angular Momentum Engine Power Core Light Nuclear Core Reactor Quantum Reactor Propulsion Airjet Treads Centrium Heavy Treads Leg Aluminum Leg Hover Unit Airjet Flight Unit Field Propulsion Drive Utility Advanced Signal Interpreter Device Improved Terrain Scanner Storage High-capacity Matter Pod Processor Advanced Signal Interpreter Hackware Improved Hacking Suite Protection Hardened Medium Armor Plating Weapon Force Rifle Energy Gun Force Rifle Energy Cannon Compact Ion Cannon Ballistic Gun Improved KE Penetrator Ballistic Cannon Magnetic Acceleration Cannon Launcher Grenade Launcher Impact Weapon Heavy Flail Special Melee Weapon Improved Datajack Build | -11 -10 -10 -9 -9 -9 -8 -8 -8 -8 -8 -6 -6 -6 -6 -6 -6 -6 -6 -6 -5 ------- Run | Scr Mat Min Mat Min Exi Min Mat Gar Sto Rec Fac Was Fac Gar Fac Ext Cet Arc Hub Fac Slots Evolved 12 | 4 . . 2 . . . 2 1 . . . . . . 1 . 1 . . 1 Power 1 | 1 . . . . . . . . . . . . . . . . . . . . Propulsion 3 | 1 . . . . . . . . . . . . . . . . 1 . . 1 Utility 5 | 1 . . 2 . . . 1 1 . . . . . . . . . . . . Weapon 3 | 1 . . . . . . 1 . . . . . . . 1 . . . . . Parts Attached 162 | 6 5 4 21 2 . 2 7 3 17 2 14 4 . 3 15 1 23 5 19 9 Power 12 | 2 . 1 1 . . 1 1 . 2 . . . . 1 1 . 2 . . . Engine 6 | 2 . . 1 . . 1 . . 1 . . . . 1 . . . . . . Core 4 | . . 1 . . . . 1 . 1 . . . . . 1 . . . . . Reactor 2 | . . . . . . . . . . . . . . . . . 2 . . . Propulsion 26 | 2 . . 5 . . 1 . . 3 . 1 . . . 2 . 6 . 2 4 Treads 1 | . . . . . . . . . . . . . . . . . 1 . . . Leg 4 | 2 . . . . . . . . . . . . . . . . 1 . 1 . Wheel . | . . . . . . . . . . . . . . . . . . . . . Hover 16 | . . . 5 . . 1 . . 3 . 1 . . . 1 . 4 . 1 . Flight 5 | . . . . . . . . . . . . . . . 1 . . . . 4 Utility 54 | . 4 . 4 1 . . 2 1 1 1 5 1 . 1 4 1 8 4 11 5 Device 34 | . . . 3 . . . . 1 . 1 4 1 . 1 4 1 3 2 9 4 Storage 4 | . 3 . . . . . . . . . . . . . . . 1 . . . Processor 6 | . 1 . 1 . . . 1 . . . 1 . . . . . . . 2 . Hackware 5 | . . . . . . . . . . . . . . . . . 3 1 . 1 Protection 5 | . . . . 1 . . 1 . 1 . . . . . . . 1 1 . . Artifact . | . . . . . . . . . . . . . . . . . . . . . Weapon 70 | 2 1 3 11 1 . . 4 2 11 1 8 3 . 1 8 . 7 1 6 . Energy Gun 32 | 1 1 2 5 1 . . 1 . 6 1 4 1 . . 3 . 3 1 2 . Energy Cannon 4 | . . . 1 . . . . . 1 . . . . . 1 . . . 1 . Ballistic Gun 18 | 1 . . 3 . . . 2 1 2 . 1 1 . . . . 4 . 3 . Ballistic Cannon 6 | . . . . . . . . . . . 2 . . 1 3 . . . . . Launcher 7 | . . 1 2 . . . 1 1 . . 1 1 . . . . . . . . Special Weapon . | . . . . . . . . . . . . . . . . . . . . . Impact Weapon 2 | . . . . . . . . . 2 . . . . . . . . . . . Slashing Weapon . | . . . . . . . . . . . . . . . . . . . . . Piercing Weapon . | . . . . . . . . . . . . . . . . . . . . . Special Melee Weapon 1 | . . . . . . . . . . . . . . . 1 . . . . . Unidentified Prototypes 29 | . . . 2 . . . 1 . 5 . 4 . . . 4 . 6 . 7 . Parts Lost . | . . . . . . . . . . . . . . . . . . . . . Power . | . . . . . . . . . . . . . . . . . . . . . Propulsion . | . . . . . . . . . . . . . . . . . . . . . Utility . | . . . . . . . . . . . . . . . . . . . . . Weapon . | . . . . . . . . . . . . . . . . . . . . . Highest Loss Streak . | . . . . . . . . . . . . . . . . . . . . . Average Slot Usage (%) 97 | . 89 99 99 95 100 100 99 96 98 100 100 100 100 100 99 100 98 97 96 93 Engine 7 | . 25 17 11 10 10 11 13 7 4 7 7 7 7 10 8 7 . . . . Core 5 | . . 6 11 10 10 8 2 7 10 7 7 7 7 4 5 7 4 . . . Reactor 3 | . . . . . . . . . . . . . . . . . 7 13 13 12 Leg 2 | . 25 25 5 . . . . . . . . . . . . . . . . . Hover 13 | . . . 17 20 20 20 16 15 13 15 15 15 15 15 14 14 18 20 19 1 Flight 2 | . . . . . . . . . . . . . . . . . . . . 21 Device 17 | . . . 16 20 20 20 16 19 23 23 23 23 23 23 22 28 12 9 12 12 Storage 1 | . 6 12 3 . . . . . . . . . . . . . . . . . Processor 12 | . 6 12 11 10 10 10 15 15 15 15 15 15 15 15 14 14 13 13 13 12 Hackware 3 | . . . . . . . . . . . . . . . . . 12 14 13 12 Protection 3 | . . . . 5 10 10 8 7 7 7 7 7 7 7 6 . . . . . Energy Gun 11 | . 12 16 13 7 10 10 7 7 11 14 16 15 15 15 8 14 15 19 10 6 Energy Cannon 2 | . . . 2 . . . . . . . . . . . 6 7 . . 2 6 Ballistic Gun 5 | . 12 5 2 10 10 10 14 14 9 7 4 . . . . . 8 6 8 6 Ballistic Cannon 1 | . . . . . . . . . . . 1 1 . 4 6 7 . . . . Naked Turns . | . . . . . . . . . . . . . . . . . . . . . Heaviest Build 80 | 12 16 22 22 22 22 26 30 28 35 35 44 41 40 48 48 48 62 60 80 80 Greatest Support 71 | 20 20 20 32 32 32 32 32 32 44 44 48 48 48 49 49 49 62 62 62 71 Greatest Overweight (x) 3 | 3 . 1 2 . . . . . 1 . . . . . 1 . 1 . 1 1 Average Overweight (x) . | . . . . . . . . . . . . . . . . . . . . 1 Largest Inventory Capacity 6 | 2 2 2 4 4 4 4 4 4 4 5 5 6 6 6 6 6 6 6 6 6 Average Capacity 4 | 2 2 2 3 4 4 4 4 4 4 4 5 5 6 6 6 6 6 6 6 6 Most Carried 6 | 2 2 2 4 4 4 4 4 4 4 5 5 6 6 6 6 6 6 6 6 6 Average Carried 4 | . 1 1 3 3 4 3 3 3 3 4 4 5 6 5 5 5 5 5 5 5 Final Capacity 6 | 2 2 2 4 4 4 4 4 4 4 5 5 6 6 6 6 6 6 6 6 6 Final Carried 6 | 2 1 2 4 4 4 4 4 3 4 5 5 6 6 6 6 6 6 6 6 6 Class Distribution -------------------- 47% | Hacker-Scout 17% | Mutant 11% | Wizard-Skirmisher 10% | Wizard-Scout 4% | Hacker-Ninja Dominant Class ---------------- Mutant | -10/Materials Mutant | -10/Mines Mutant | -9/Materials Hacker-Scout | -9/Mines Hacker-Scout | -9/Exiles Hacker-Scout | -8/Mines Hacker-Scout | -8/Materials Hacker-Scout | -8/Garrison Hacker-Scout | -8/Storage Hacker-Scout | -8/Recycling Hacker-Scout | -6/Factory Hacker-Scout | -6/Waste Hacker-Scout | -6/Factory Hacker-Scout | -6/Garrison Hacker-Scout | -6/Factory Hacker-Scout | -6/Extension Wizard-Scout | -6/Cetus Wizard-Scout | -6/Archives Wizard-Scout | -6/Hub_04(d) Wizard-Skirmisher | -5/Factory Resources | -11 -10 -10 -9 -9 -9 -8 -8 -8 -8 -8 -6 -6 -6 -6 -6 -6 -6 -6 -6 -5 ----------- Run | Scr Mat Min Mat Min Exi Min Mat Gar Sto Rec Fac Was Fac Gar Fac Ext Cet Arc Hub Fac Matter Collected 4896 | 275 90 279 220 163 . 61 313 12 461 30 145 193 . 156 316 390 382 76 908 426 Remotely . | . . . . . . . . . . . . . . . . . . . . . Salvage Created 9776 | 54 90 217 1035 200 . 182 546 12 1021 185 150 310 . 445 741 885 758 40 1971 934 Parts 550 | 2 7 13 55 12 . 8 39 8 56 23 13 1 . 28 47 50 29 3 109 47 Haulers Intercepted 12 | . . . 2 . . . 2 . 4 . 1 . . . . . . . 3 . Recyclers Shooed 3 | . . 2 . . . . . . . 1 . . . . . . . . . . Parts Field Recycled . | . . . . . . . . . . . . . . . . . . . . . Retrieved Matter . | . . . . . . . . . . . . . . . . . . . . . Parts Self-Destructed . | . . . . . . . . . . . . . . . . . . . . . Prevented . | . . . . . . . . . . . . . . . . . . . . . Kills | -11 -10 -10 -9 -9 -9 -8 -8 -8 -8 -8 -6 -6 -6 -6 -6 -6 -6 -6 -6 -5 ------- Run | Scr Mat Min Mat Min Exi Min Mat Gar Sto Rec Fac Was Fac Gar Fac Ext Cet Arc Hub Fac Combat Hostiles Destroyed 187 | . 3 5 27 4 . 3 18 6 14 11 3 2 . 14 15 15 9 . 25 13 Guns 129 | . 3 4 11 4 . 2 12 3 14 11 1 . . 7 6 10 9 . 22 10 Cannons 22 | . . . 2 . . . . . . . . . . 2 9 5 . . 1 3 AOE 33 | . . 1 14 . . 1 6 3 . . 1 2 . 5 . . . . . . Classes Destroyed 19 | 1 2 1 5 . . . 1 . 1 1 . 1 . 1 2 . . . 2 1 Worker 10 | . . . 3 . . . . . 1 . . . . . 1 . . . 4 1 Builder 7 | . . . 2 . . . . . . . 1 . . . . . . . 4 . Tunneler 1 | . . . . . . . . . . . . . . . . . . . 1 . Hauler 12 | . . . 2 . . . 2 . 4 . 1 . . . . . . . 3 . Recycler 4 | 1 . 1 . . . . . . 1 . . . . . . 1 . . . . Operator 5 | . . . . . . . . . . . . . . . 1 2 . 1 1 . Drone 11 | . . . . . . . . . . 11 . . . . . . . . . . Watcher 14 | . 1 . 1 . . . . . . . . . . . 4 1 1 . 2 4 Swarmer 32 | . . 3 6 . . . 10 3 . . . . . 4 . . 1 . 5 . Saboteur 1 | . . . . . . . . . . . . . . . . . . . . 1 Grunt 74 | . 3 2 12 3 . 3 5 3 7 . 3 . . 8 6 3 5 . 5 6 Brawler 3 | . . . 1 1 . . . . . . . . . 1 . . . . . . Duelist 5 | . . . . . . . 1 . 1 . . . . . 1 1 1 . . . Protector 2 | . . . . . . . . . . . . . . . . . . . 2 . Sentry 37 | . . . 8 . . . 2 . 5 . . . . . 5 10 . . 6 1 Hunter 5 | . . . . . . . . . 1 . . . . 1 1 . . . . 2 Programmer 7 | . . . . . . . . . . . . . . . 2 1 . . 1 3 Compactor 2 | . . . . . . . . . . . . 2 . . . . . . . . Cetus Guard 2 | . . . . . . . . . . . . . . . . . 2 . . . Lightning 6 | . . . . . . . . . . . . . . . . . . . 6 . Surgeon 1 | . . . . . . . . . . . . . . 1 . . . . . . Thug 3 | . . . . . . . . . . . . . . . . . 1 . 2 . Savage 1 | . . . . . . . . . . . . . . . . 1 . . . . Butcher 1 | . . . . . . . . . . . . . . . . . . . 1 . Best Kill Streak 13 | 1 2 4 13 2 . 2 8 3 4 5 2 2 . 9 3 3 3 1 9 7 Combat Bots Only 9 | . 2 3 8 2 . 2 8 3 3 5 2 2 . 9 3 3 3 . 8 6 Max Kills in Single Turn 3 | 1 1 1 3 1 . 1 3 3 2 1 1 1 . 2 1 2 2 1 3 2 Gunslinging 1 | . . . . . . . 1 . . . . . . . . . . . 1 . Exploded 3 | . . 1 2 . . 1 2 3 . . 1 1 . 2 . . . . . . Melee . | . . . . . . . . . . . . . . . . . . . . . Uniques/NPCs Destroyed . | . . . . . . . . . . . . . . . . . . . . . Combat | -11 -10 -10 -9 -9 -9 -8 -8 -8 -8 -8 -6 -6 -6 -6 -6 -6 -6 -6 -6 -5 -------- Run | Scr Mat Min Mat Min Exi Min Mat Gar Sto Rec Fac Was Fac Gar Fac Ext Cet Arc Hub Fac Damage Taken 9340 | . 56 137 1163 163 . 339 593 199 645 16 466 42 . 854 523 786 362 15 1951 1030 Core 7487 | . 41 108 942 124 . 270 473 157 521 12 368 35 . 691 415 616 285 12 1573 844 Absorbed by Shields 1445 | . . . . . . . . . 15 . 170 . . . . 266 236 4 501 253 Redirected to Core 6427 | . 41 90 777 124 . 250 399 139 436 12 353 26 . 567 385 509 275 12 1379 653 Core Remaining (%) 78 | 100 . 82 . . . 80 . . . 97 . . . . . . . . 33 . Volleys Fired 618 | 5 15 17 80 10 . 12 36 13 44 16 28 4 . 29 50 70 29 6 102 52 Largest 4 | 2 2 2 2 2 . 2 3 3 3 2 3 2 . 3 3 4 4 4 4 2 Hottest 435 | 70 70 75 130 68 . 68 105 105 144 100 213 160 . 213 250 290 435 435 390 310 Shots Fired 1387 | 10 30 25 137 20 . 24 82 35 98 32 67 5 . 64 125 212 92 18 246 65 Gun 1090 | 10 30 24 85 20 . 24 74 33 98 32 60 2 . 50 43 121 84 18 235 47 Cannon 255 | . . . 27 . . . . . . . 7 . . 11 82 91 8 . 11 18 Launcher 42 | . . 1 25 . . . 8 2 . . . 3 . 3 . . . . . . Special . | . . . . . . . . . . . . . . . . . . . . . Kinetic 516 | 5 15 8 26 10 . 12 53 22 27 . 21 . . 11 48 43 34 1 150 30 Thermal 642 | 5 3 8 52 . . . 9 11 61 . 18 2 . 50 77 169 58 17 85 17 Explosive 42 | . . 1 25 . . . 8 2 . . . 3 . 3 . . . . . . Electromagnetic 187 | . 12 8 34 10 . 12 12 . 10 32 28 . . . . . . . 11 18 Robot Hit Streak 42 | 1 4 3 18 11 . 20 17 11 32 16 22 13 . 13 39 34 40 10 24 42 Robot Miss Streak 6 | 2 4 2 4 2 . 1 6 1 1 4 3 1 . 2 2 2 2 1 4 1 Penetration Max 1 | . . . . . . . . . . . . . . . . . 1 . 1 1 Secondary Targets 18 | . . . 1 1 . 1 1 1 1 . . . . 2 . . 4 . 5 1 Max Gunslinging Chain 1 | . . . 1 1 . 1 1 1 1 . . . . 1 . . 1 . 1 1 Shots Hit Robots 991 | 1 17 13 97 16 . 24 51 28 80 23 53 4 . 48 84 139 73 14 167 59 Core Hits 488 | 2 8 8 61 7 . 13 35 9 33 11 17 5 . 62 35 46 32 5 75 24 Critical Hits 81 | . 1 . . . . . . . . 1 2 . . 2 . 13 12 3 34 13 Critical Kills 30 | . 1 . . . . . . . . 1 . . . . . 4 3 1 14 6 Critical Parts Destroyed 49 | . . . . . . . . . . . 2 . . 2 . 8 9 2 19 7 Melee Attacks 4 | . . . . . . . . . 4 . . . . . . . . . . . Impact 4 | . . . . . . . . . 4 . . . . . . . . . . . Slashing . | . . . . . . . . . . . . . . . . . . . . . Piercing . | . . . . . . . . . . . . . . . . . . . . . Sneak Attacks . | . . . . . . . . . . . . . . . . . . . . . Combat Hostiles . | . . . . . . . . . . . . . . . . . . . . . Follow-up Attacks . | . . . . . . . . . . . . . . . . . . . . . Damage Inflicted 29190 | 76 197 347 2712 223 . 490 1516 590 1612 508 1075 791 . 2520 2408 4044 2158 298 5296 2329 Guns 17743 | 76 197 237 768 223 . 424 802 402 1540 478 939 25 . 912 600 1773 1922 298 4646 1481 Cannons 6171 | . . . 479 . . . . . . . 56 . . 289 1723 2271 236 . 311 806 Explosions 5276 | . . 110 1465 . . 66 714 188 72 30 80 766 . 1319 85 . . . 339 42 Melee . | . . . . . . . . . . . . . . . . . . . . . Ramming . | . . . . . . . . . . . . . . . . . . . . . Kinetic 9443 | 39 124 48 292 145 . 172 534 247 480 . 268 . . 289 945 1349 816 . 2843 852 Thermal 11951 | 37 13 160 716 . . 66 329 155 941 30 391 25 . 912 1378 2695 1342 298 1834 629 Explosive 4095 | . . 72 1144 . . . 479 188 . . . 766 . 1319 85 . . . . 42 Electromagnetic 3701 | . 60 67 560 78 . 252 174 . 191 478 416 . . . . . . . 619 806 Impact . | . . . . . . . . . . . . . . . . . . . . . Slashing . | . . . . . . . . . . . . . . . . . . . . . Piercing . | . . . . . . . . . . . . . . . . . . . . . Highest Corruption 18 | . . . . . . . . . 1 1 2 2 2 2 2 4 4 4 18 6 Average Corruption 3 | . . . . . . . . . 1 1 1 2 2 2 2 3 4 4 11 1 Corruption Purged . | . . . . . . . . . . . . . . . . . . . . . Effects 145 | . . . . . . . . . 1 2 4 2 . 10 16 15 15 5 71 4 Message Errors 16 | . . . . . . . . . . 1 1 . . 4 2 3 2 . 2 1 Matter Fused 17 | . . . . . . . . . . . . . . . . . 3 1 12 1 Heat Flow Errors 10 | . . . . . . . . . . . . 1 . . 3 2 1 2 1 . Energy Discharges 15 | . . . . . . . . . . . 1 1 . 1 5 2 1 . 4 . Parts Rejected 2 | . . . . . . . . . . . . . . . . . 1 . 1 . Data Loss (minor) 15 | . . . . . . . . . . 1 . . . 1 4 1 1 1 5 1 Alerts 1 | . . . . . . . . . . . . . . . . . . . 1 . Misdirections 3 | . . . . . . . . . . . . . . . . . . . 3 . Targeting Errors 57 | . . . . . . . . . 1 . 2 . . 4 1 6 5 1 36 1 Weapon Failures 9 | . . . . . . . . . . . . . . . 1 1 1 . 6 . Overload Shots 13 | . . . . . . . . . . . . . . . . . 2 1 1 9 Overflow Damage 471 | . . . 98 . . . 42 . 22 . . . . 52 89 27 . . 28 113 Projectiles 251 | . . . 10 . . . . . . . . . . 42 59 27 . . . 113 Explosions 220 | . . . 88 . . . 42 . 22 . . . . 10 30 . . . 28 . Melee . | . . . . . . . . . . . . . . . . . . . . . Knockbacks 21 | . . . . . . . . . . . 1 . . 3 12 5 . . . . Impact . | . . . . . . . . . . . . . . . . . . . . . Kinetic 20 | . . . . . . . . . . . 1 . . 3 12 4 . . . . Secondary 1 | . . . . . . . . . . . . . . . . 1 . . . . Self-Inflicted Damage 778 | . . . 161 . . 22 140 . 33 16 61 . . 114 80 . . . 151 . Shots 23 | . . . 5 . . 1 5 . 1 1 1 . . 6 1 . . . 2 . Rammed . | . . . . . . . . . . . . . . . . . . . . . Targets Rammed . | . . . . . . . . . . . . . . . . . . . . . Kicked . | . . . . . . . . . . . . . . . . . . . . . Crushed . | . . . . . . . . . . . . . . . . . . . . . Highest Temperature 389 | 48 90 340 55 6 . 22 224 230 360 38 190 130 . 162 256 208 389 287 288 243 Average Temperature 70 | 18 35 121 18 4 . 9 90 91 96 13 53 39 . 59 78 51 64 105 74 99 Received Heat Transfer 2187 | . 30 42 318 90 . 171 135 108 249 . 89 . . 168 180 255 79 . 113 160 Effects 2 | . . 1 . . . . . . . . . . . . 1 . . . . . Energy Bleed 1 | . . . . . . . . . . . . . . . 1 . . . . . Short Circuit 1 | . . 1 . . . . . . . . . . . . . . . . . . Siege Activations . | . . . . . . . . . . . . . . . . . . . . . Robots Corrupted 6 | . . . 1 . . . . . . . 1 . . . . . . . 1 3 Combat Hostiles 1 | . . . . . . . . . . . 1 . . . . . . . . . Parts Fried 28 | . . . 2 . . . . . . 3 2 . . . . 1 . . 10 10 Impact Corruptions . | . . . . . . . . . . . . . . . . . . . . . Robots Melted 1 | . . . . . . . . . . . . . . . . . . . 1 . Combat Hostiles 1 | . . . . . . . . . . . . . . . . . . . 1 . Parts Melted 24 | . . . 1 . . . . 1 5 . . . . 3 2 4 1 1 5 1 Heat Transferred 17001 | 111 37 322 1143 . . 100 435 296 1752 100 494 37 . 1406 1961 3829 1746 457 2140 635 Parts Sabotaged . | . . . . . . . . . . . . . . . . . . . . . Parts Stolen . | . . . . . . . . . . . . . . . . . . . . . Parts Stripped . | . . . . . . . . . . . . . . . . . . . . . Power Chain Reactions 13 | . . . 4 . . 1 4 . 1 1 1 . . . . . . . 1 . Missiles Intercepted . | . . . . . . . . . . . . . . . . . . . . . Alert | -11 -10 -10 -9 -9 -9 -8 -8 -8 -8 -8 -6 -6 -6 -6 -6 -6 -6 -6 -6 -5 ------- Run | Scr Mat Min Mat Min Exi Min Mat Gar Sto Rec Fac Was Fac Gar Fac Ext Cet Arc Hub Fac Peak Influence 1186 | 5 105 120 706 312 . 99 591 531 375 420 1186 274 191 795 755 850 1038 290 1123 569 Average Influence 364 | 1 50 59 274 191 . 70 336 451 255 139 1034 235 191 624 441 352 518 274 670 292 Maximum Alert Level 4 | . . . 3 1 . . 2 2 1 2 4 1 . 3 3 3 3 1 4 2 Low Security (%) 39 | 100 100 100 36 65 . 100 13 . 20 68 . 20 100 8 34 36 18 12 13 40 Level 1 21 | . . . 41 34 . . 44 38 79 28 . 79 . 2 . 32 11 87 6 18 Level 2 23 | . . . 20 . . . 42 61 . 3 3 . . 38 48 17 50 . 23 40 Level 3 13 | . . . 1 . . . . . . . 67 . . 50 17 13 20 . 49 . Level 4 1 | . . . . . . . . . . . 29 . . . . . . . 7 . Level 5 . | . . . . . . . . . . . . . . . . . . . . . High Security . | . . . . . . . . . . . . . . . . . . . . . Max Security . | . . . . . . . . . . . . . . . . . . . . . Squads Dispatched 43 | . 2 . 6 1 . . 1 . 1 . 5 . . . 9 1 1 . 11 5 Investigation 14 | . 1 . 3 . . . . . 1 . 1 . . . 6 . 1 . . 1 Extermination 5 | . . . . . . . . . . . . . . . 2 . . . 1 2 Reinforcement 10 | . 1 . 3 . . . . . . . 1 . . . 1 1 . . 2 1 Assault 3 | . . . . 1 . . . . . . . . . . . . . . 1 1 Garrison 11 | . . . . . . . 1 . . . 3 . . . . . . . 7 . Intercept . | . . . . . . . . . . . . . . . . . . . . . Construction Impeded 2 | . . . 1 . . . . . . . . . . . . . . . 1 . Haulers Reinforced 2 | . . . . . . . . . . . 1 . . . . . . . . 1 Stealth | -11 -10 -10 -9 -9 -9 -8 -8 -8 -8 -8 -6 -6 -6 -6 -6 -6 -6 -6 -6 -5 --------- Run | Scr Mat Min Mat Min Exi Min Mat Gar Sto Rec Fac Was Fac Gar Fac Ext Cet Arc Hub Fac Distress Signals 13 | . 1 . 3 . . . . . 1 . . . . . 2 . 2 . 4 . Communications Jammed 4 | . . . . . . . . . . 4 . . . . . . . . . . Distress Signals . | . . . . . . . . . . . . . . . . . . . . . Times Spotted 306 | . 7 5 38 8 . 5 18 5 17 12 10 5 . 24 24 29 25 5 53 16 Peak Tracking Total 11 | . 3 3 9 4 . 3 6 3 3 4 3 3 . 11 3 4 5 3 10 6 Tactical Retreats 10 | . . . 2 . . . . . . . 1 . . 1 1 1 . . 2 2 Traps | -11 -10 -10 -9 -9 -9 -8 -8 -8 -8 -8 -6 -6 -6 -6 -6 -6 -6 -6 -6 -5 ------- Run | Scr Mat Min Mat Min Exi Min Mat Gar Sto Rec Fac Was Fac Gar Fac Ext Cet Arc Hub Fac Traps Triggered 15 | . 1 . 1 . . . . . 3 . 2 . . . . 7 . . . 1 Indirectly . | . . . . . . . . . . . . . . . . . . . . . Trap Hack Attempts . | . . . . . . . . . . . . . . . . . . . . . Triggered . | . . . . . . . . . . . . . . . . . . . . . Disarmed . | . . . . . . . . . . . . . . . . . . . . . Reprogrammed . | . . . . . . . . . . . . . . . . . . . . . Reused . | . . . . . . . . . . . . . . . . . . . . . Traps Extracted . | . . . . . . . . . . . . . . . . . . . . . Installed . | . . . . . . . . . . . . . . . . . . . . . Triggered 1 | . . . . . . . . . . . 1 . . . . . . . . . Machines | -11 -10 -10 -9 -9 -9 -8 -8 -8 -8 -8 -6 -6 -6 -6 -6 -6 -6 -6 -6 -5 ---------- Run | Scr Mat Min Mat Min Exi Min Mat Gar Sto Rec Fac Was Fac Gar Fac Ext Cet Arc Hub Fac Machines Disabled 63 | . . 3 10 . . . 2 . 1 3 1 . . 1 1 . . . 26 15 Max in Single Turn 7 | . . 3 2 . . . 1 . 1 1 . . . 1 1 . . . 7 5 Garrison Access 1 | . . . . . . . . . . . . . . . 1 . . . . . Garrison Relay 1 | . . . . . . . . . . . . . . 1 . . . . . . Network Hub 4 | . . . . . . . . . . . . . . . . . . . 4 . Machines Sabotaged . | . . . . . . . . . . . . . . . . . . . . . Garrisons Compromised . | . . . . . . . . . . . . . . . . . . . . . Overloaded Fab Kills . | . . . . . . . . . . . . . . . . . . . . . Fab Network Shutdowns . | . . . . . . . . . . . . . . . . . . . . . Hacking | -11 -10 -10 -9 -9 -9 -8 -8 -8 -8 -8 -6 -6 -6 -6 -6 -6 -6 -6 -6 -5 --------- Run | Scr Mat Min Mat Min Exi Min Mat Gar Sto Rec Fac Was Fac Gar Fac Ext Cet Arc Hub Fac Machines Accessed 83 | . 2 1 7 . 1 . 3 . 5 12 5 . 1 . 19 8 4 1 8 6 Terminals 57 | . 2 . 6 . . . 2 . 4 5 4 . . . 12 8 4 . 6 4 Fabricators 4 | . . . . . . . . . . . . . . . 3 . . . . 1 Repair Stations 1 | . . . . . . . . . 1 . . . . . . . . . . . Recycling Units 10 | . . . 1 . . . . . . 7 1 . . . 1 . . . . . Scanalyzers 3 | . . . . . . . . . . . . . . . 2 . . . . 1 Garrison Access 5 | . . . . . . . 1 . . . . . 1 . 1 . . . 2 . Total Hacks 305 | . 6 1 23 . 10 . 5 . 29 22 16 . 1 . 46 15 22 25 37 47 Successful 185 | . 3 1 11 . 10 . 2 . 21 18 7 . 1 . 21 8 13 25 20 24 Failed 118 | . 3 . 12 . . . 3 . 7 4 9 . . . 25 7 8 . 17 23 Catastrophic 18 | . . . 1 . . . . . . . 2 . . . 8 1 1 . 2 3 Database Lockouts 5 | . . . . . . . . . 2 . . . . . . . 3 . . . Manual 188 | . 1 . 10 . . . 2 . 23 22 16 . . . 35 3 18 1 23 34 Terminals 218 | . 6 . 21 . . . 4 . 24 15 15 . . . 35 15 22 . 28 33 Fabricators 12 | . . . . . . . . . . . . . . . 7 . . . . 5 Repair Stations 5 | . . . . . . . . . 5 . . . . . . . . . . . Recycling Units 11 | . . . 2 . . . . . . 7 1 . . . 1 . . . . . Scanalyzers 11 | . . . . . . . . . . . . . . . 2 . . . . 9 Garrison Access 12 | . . . . . . . 1 . . . . . 1 . 1 . . . 9 . Terminal Hacks 131 | . 2 1 7 . 10 . . . 16 9 6 . . . 9 8 13 25 14 11 Record 42 | . . . . . 10 . . . . . . . . . 1 . 6 25 . . Part Schematic 5 | . . . . . . . . . . . . . . . 1 . . . 1 3 Robot Schematic 1 | . . . . . . . . . . 1 . . . . . . . . . . Robot Analysis 2 | . . . . . . . . . . . . . . . . . . . 2 . Prototype ID Bank 11 | . . . . . . . . . 9 2 . . . . . . . . . . Open Door 8 | . . 1 . . . . . . . . . . . . . 6 1 . . . Level Access Points 1 | . . . . . . . . . . . . . . . . . . . 1 . Branch Access Points 3 | . . . . . . . . . 1 . . . . . . . . . 1 1 Terminal Index 3 | . . . . . . . . . 1 . 1 . . . . . . . . 1 Fabricator Index 2 | . . . . . . . . . . . . . . . 1 . . . . 1 Repair Station Index 1 | . . . . . . . . . . . . . . . . . . . . 1 Recycling Unit Index 3 | . . . . . . . . . . 2 1 . . . . . . . . . Garrison Index 2 | . . . . . . . . . . . 1 . . . . . . . 1 . Alert Level 1 | . . . 1 . . . . . . . . . . . . . . . . . Unreport Threat 31 | . . . 2 . . . . . 3 3 3 . . . 4 1 5 . 7 3 Locate Traps 4 | . 1 . . . . . . . . . . . . . 1 1 . . . 1 Recall Investigation 2 | . . . . . . . . . . . . . . . 1 . 1 . . . Hauler Manifests 3 | . . . 1 . . . . . 2 . . . . . . . . . . . Zone Layout 6 | . 1 . 3 . . . . . . 1 . . . . . . . . 1 . Fabricator Hacks 8 | . . . . . . . . . . . . . . . 3 . . . . 5 Network Status 1 | . . . . . . . . . . . . . . . . . . . . 1 Load Schematic 4 | . . . . . . . . . . . . . . . 2 . . . . 2 Build 3 | . . . . . . . . . . . . . . . 1 . . . . 2 Repair Station Hacks 4 | . . . . . . . . . 4 . . . . . . . . . . . Scan Component 2 | . . . . . . . . . 2 . . . . . . . . . . . Repair 2 | . . . . . . . . . 2 . . . . . . . . . . . Recycling Unit Hacks 1 | . . . 1 . . . . . . . . . . . . . . . . . Retrieve Components 1 | . . . 1 . . . . . . . . . . . . . . . . . Scanalyzer 6 | . . . . . . . . . . . . . . . . . . . . 6 Insert Component 3 | . . . . . . . . . . . . . . . . . . . . 3 Analyze 3 | . . . . . . . . . . . . . . . . . . . . 3 Garrison Access Hacks 3 | . . . . . . . 1 . . . . . 1 . 1 . . . . . Unlock Access 2 | . . . . . . . 1 . . . . . 1 . . . . . . . Seal Access 1 | . . . . . . . . . . . . . . . 1 . . . . . Unauthorized Hacks 73 | . 2 . 6 . . . 3 . 2 18 2 . . . 19 . . . 16 5 Terminals 14 | . 1 . 3 . . . 1 . 1 2 . . . . 4 . . . 1 1 Track 2 | . . . 1 . . . . . . 1 . . . . . . . . . . Assimilate 2 | . . . . . . . . . . . . . . . 2 . . . . . Botnet 9 | . 1 . 2 . . . 1 . 1 1 . . . . 1 . . . 1 1 Operators 1 | . . . . . . . . . . . . . . . 1 . . . . . Fabricators 1 | . . . . . . . . . . . . . . . 1 . . . . . Download 1 | . . . . . . . . . . . . . . . 1 . . . . . Repair Stations . | . . . . . . . . . . . . . . . . . . . . . Recycling Units 9 | . . . . . . . . . . 7 1 . . . 1 . . . . . Tunnel 9 | . . . . . . . . . . 7 1 . . . 1 . . . . . Scanalyzers 3 | . . . . . . . . . . . . . . . 2 . . . . 1 Researchers 1 | . . . . . . . . . . . . . . . . . . . . 1 Extract 2 | . . . . . . . . . . . . . . . 2 . . . . . Garrison Access 5 | . . . . . . . . . . . . . . . . . . . 5 . Broadcast 1 | . . . . . . . . . . . . . . . . . . . 1 . Reprogram 2 | . . . . . . . . . . . . . . . . . . . 2 . Intercept 1 | . . . . . . . . . . . . . . . . . . . 1 . Watchers 1 | . . . . . . . . . . . . . . . . . . . 1 . Data Cores Recovered 3 | . . . . . . . . . . . . . . . 1 1 . . 1 . Used 3 | . . . . . . . . . . . . . . . 1 1 . . 1 . Hacking Detections 51 | . 2 . 5 . . . 2 . 4 6 3 . . . 12 4 3 . 4 6 Full Trace Events 4 | . . . 2 . . . . . . . . . . . 2 . . . . . Feedback Events . | . . . . . . . . . . . . . . . . . . . . . Feedback Blocked . | . . . . . . . . . . . . . . . . . . . . . Robot Schematics Acquired 1 | . . . . . . . . . . 1 . . . . . . . . . . Robots Built . | . . . . . . . . . . . . . . . . . . . . . Matter . | . . . . . . . . . . . . . . . . . . . . . Time . | . . . . . . . . . . . . . . . . . . . . . Total Robot Build Rating . | . . . . . . . . . . . . . . . . . . . . . Part Schematics Acquired 10 | . . . . . . . . . . . . . . . 3 . . . 1 6 Parts Built 4 | . . . . . . . . . . . . . . . 1 . . . . 3 Matter 720 | . . . . . . . . . . . . . . . 168 . . . . 552 Time 370 | . . . . . . . . . . . . . . . 84 . . . . 286 Total Part Build Rating 24 | . . . . . . . . . . . . . . . 4 . . . . 20 Parts Repaired 2 | . . . . . . . . . 2 . . . . . . . . . . . Time 76 | . . . . . . . . . 76 . . . . . . . . . . . Parts Recycled . | . . . . . . . . . . . . . . . . . . . . . Recycled Matter . | . . . . . . . . . . . . . . . . . . . . . Retrieved Matter . | . . . . . . . . . . . . . . . . . . . . . Retrieved Components 2 | . . . 2 . . . . . . . . . . . . . . . . . Parts Scanalyzed 3 | . . . . . . . . . . . . . . . . . . . . 3 Part Schematics Acquired 3 | . . . . . . . . . . . . . . . . . . . . 3 Parts Damaged . | . . . . . . . . . . . . . . . . . . . . . Bothacking | -11 -10 -10 -9 -9 -9 -8 -8 -8 -8 -8 -6 -6 -6 -6 -6 -6 -6 -6 -6 -5 ------------ Run | Scr Mat Min Mat Min Exi Min Mat Gar Sto Rec Fac Was Fac Gar Fac Ext Cet Arc Hub Fac Used RIF Installer 2 | . . . . . . . . 1 . . . . . 1 . . . . . . Coupler Efficiency 1 | . . . . . . . . . . . . . . 1 . . . . . . Robots Hacked . | . . . . . . . . . . . . . . . . . . . . . Non-combat . | . . . . . . . . . . . . . . . . . . . . . Combat . | . . . . . . . . . . . . . . . . . . . . . Robot Hacks Applied . | . . . . . . . . . . . . . . . . . . . . . Relay Couplers Released 2 | . . . . . . . . . . . . . . 2 . . . . . . Machine Destruction 2 | . . . . . . . . . . . . . . 2 . . . . . . Robots Rewired 16 | . . . . . . . . . . 1 1 . . . . 14 . . . . Allies Hacked . | . . . . . . . . . . . . . . . . . . . . . Hacks Repelled . | . . . . . . . . . . . . . . . . . . . . . Allies | -11 -10 -10 -9 -9 -9 -8 -8 -8 -8 -8 -6 -6 -6 -6 -6 -6 -6 -6 -6 -5 -------- Run | Scr Mat Min Mat Min Exi Min Mat Gar Sto Rec Fac Was Fac Gar Fac Ext Cet Arc Hub Fac Total Allies 55 | . . . . 4 . . . . . 1 1 19 . . 1 22 5 . 2 . Largest Group 20 | . . . . 3 3 3 . . . 1 1 19 7 7 1 18 20 15 11 . Highest-Rated Group 981 | . . . . 40 40 40 . . . 15 32 714 285 285 46 613 981 773 486 . Highest-Rated Ally 156 | . . . . 31 16 16 . . . 15 32 50 46 46 46 156 144 131 94 . Total Orders 1 | . . . . . . . . . . . . . . . . 1 . . . . AID 1 | . . . . . . . . . . . . . . . . 1 . . . . Ally Attacks 452 | . . . . 20 . 13 . . . 7 3 82 . 37 3 102 95 19 71 . Total Damage 13718 | . . . . 244 . 152 . . . 96 205 5295 . 832 97 1999 2343 582 1873 . Kills 85 | . . . . 3 . 3 . . . 2 4 12 . 11 . 15 15 4 16 . Allies Corrupted 6 | . . . . . . . . . . . . . . . . . . . 6 . Allies Melted . | . . . . . . . . . . . . . . . . . . . . . Intel | -11 -10 -10 -9 -9 -9 -8 -8 -8 -8 -8 -6 -6 -6 -6 -6 -6 -6 -6 -6 -5 ------- Run | Scr Mat Min Mat Min Exi Min Mat Gar Sto Rec Fac Was Fac Gar Fac Ext Cet Arc Hub Fac Robot Analysis Total 2 | . . . . . . . . . . . . . . . . . . . 2 . Derelict Logs Recovered 2 | . . 1 . 1 . . . . . . . . . . . . . . . . Drone Launches . | . . . . . . . . . . . . . . . . . . . . . Drone Recoveries . | . . . . . . . . . . . . . . . . . . . . . Exploration | -11 -10 -10 -9 -9 -9 -8 -8 -8 -8 -8 -6 -6 -6 -6 -6 -6 -6 -6 -6 -5 ------------- Run | Scr Mat Min Mat Min Exi Min Mat Gar Sto Rec Fac Was Fac Gar Fac Ext Cet Arc Hub Fac Turns Passed 10135 | 83 372 530 944 421 353 285 242 202 631 391 437 151 51 414 1357 654 589 160 752 1116 Spaces Moved 8636 | 53 236 369 754 462 438 319 176 137 312 533 542 206 62 408 1117 473 586 208 534 711 Core 23 | 23 . . . . . . . . . . . . . . . . . . . . Treads . | . . . . . . . . . . . . . . . . . . . . . Legs 742 | 30 236 369 107 . . . . . . . . . . . . . . . . . Wheels . | . . . . . . . . . . . . . . . . . . . . . Hover 7216 | . . . 647 462 438 319 176 137 312 533 542 206 62 408 1117 473 586 208 534 56 Flight 655 | . . . . . . . . . . . . . . . . . . . . 655 Fastest Speed 45 | 50 120 120 56 56 56 56 56 56 51 51 46 46 46 46 46 46 45 45 45 105 Average Speed 63 | 106 120 122 70 56 56 56 56 56 62 51 46 46 46 46 46 46 47 45 67 112 Slowest Speed 200 | 200 120 150 180 56 56 56 56 56 120 51 51 46 46 46 110 46 110 45 116 114 Overloaded Moves . | . . . . . . . . . . . . . . . . . . . . . Propulsion Burnouts . | . . . . . . . . . . . . . . . . . . . . . Robots Hopped . | . . . . . . . . . . . . . . . . . . . . . Cave-ins Triggered . | . . . . . . . . . . . . . . . . . . . . . Exploration Rate (%) 54 | 3 37 73 69 90 82 79 21 42 49 81 20 87 3 44 24 73 91 96 69 16 Regions Visited 20 Branch Regions 10 Pre-discovered Areas 10 | . . . . 1 . . . . . 7 1 . . . 1 . . . . . Known Exits Taken 15 | . 1 1 1 1 1 1 1 . 1 1 . . 1 . 1 1 1 1 1 . Unknown Exits Taken 1 | 1 . . . . . . . . . . . . . . . . . . . . Scrap Searched 3 | . . 1 . 1 . 1 . . . . . . . . . . . . . . Spaces Dug 24 | . . . . . . . . . 1 . 3 . . . 7 1 . . 12 . Terrain Destroyed 993 | . . 20 164 . . 7 52 18 7 6 8 81 . 26 56 15 1 . 494 38 Melee 1 | . . . . . . . . . 1 . . . . . . . . . . . Projectile 89 | . . 1 . . . . . 1 . . 4 . . . 18 15 1 . 39 10 AOE 903 | . . 19 164 . . 7 52 17 6 6 4 81 . 26 38 . . . 455 28 Actions | -11 -10 -10 -9 -9 -9 -8 -8 -8 -8 -8 -6 -6 -6 -6 -6 -6 -6 -6 -6 -5 --------- Run | Scr Mat Min Mat Min Exi Min Mat Gar Sto Rec Fac Was Fac Gar Fac Ext Cet Arc Hub Fac Total 12116 | 66 295 424 1024 603 545 400 263 238 659 619 676 253 83 573 1858 754 827 259 733 964 Wait 2050 | 1 29 25 128 106 108 51 22 66 208 61 53 21 22 69 637 69 136 37 34 167 Move 8615 | 52 235 368 753 461 437 318 175 135 311 532 542 205 61 406 1116 472 585 207 533 711 Hop . | . . . . . . . . . . . . . . . . . . . . . Pick Up 55 | 2 3 4 6 2 . 1 5 . 6 3 6 2 . 1 2 2 5 1 1 3 Fast Attach 95 | 6 4 3 13 . . 1 3 . 12 . 9 2 . 1 9 . 13 3 12 4 Attach 16 | . . 1 2 1 . . 3 1 1 . . . . 1 . . 1 1 3 1 Detach 7 | . . . . . . . . . . . . . . . . . 2 . 5 . Swap 51 | . 1 . 6 1 . 1 1 2 4 2 5 2 . 1 6 1 9 1 4 4 Drop 126 | . 6 6 16 1 . 2 7 . 15 2 15 3 . 2 10 2 16 3 13 7 Fire 618 | 5 15 17 80 10 . 12 36 13 44 16 28 4 . 29 50 70 29 6 102 52 Melee 4 | . . . . . . . . . 4 . . . . . . . . . . . Ram . | . . . . . . . . . . . . . . . . . . . . . Kick . | . . . . . . . . . . . . . . . . . . . . . Crush . | . . . . . . . . . . . . . . . . . . . . . Escape Stasis 76 | . . . . . . . . . 24 . . . . . . 52 . . . . Rewire 80 | . . . . . . . . . . 3 1 . . 27 . 49 . . . . Trap . | . . . . . . . . . . . . . . . . . . . . . Miscellaneous 323 | . 2 . 20 21 . 14 11 21 30 . 17 14 . 36 28 37 31 . 26 15 Route ------- -11/Scrapyard -10/Materials (discovered 3 exits: *Mat x2 / *Min) -10/Mines -9/Materials (discovered 2 exits: *Mat / *Min) -9/Mines (discovered 4 exits: *Mat x2 / *Exi / [*Zio]) -9/Exiles -8/Mines (discovered 2 exits: *Mat x2) -8/Materials -8/Garrison -8/Storage -8/Recycling -6/Factory (discovered 2 exits: *Fac / *Low) -6/Waste -6/Factory -6/Garrison -6/Factory (discovered 4 exits: *Fac / *Low x2 / *Ext) -6/Extension (discovered 3 exits: *Fac x2 / *Cet) -6/Cetus (discovered 3 exits: *Fac x2 / *Arc) -6/Archives (discovered 3 exits: *Fac / *Hub x2) -6/Hub_04(d) (discovered 4 exits: *Fac x4) -5/Factory (discovered 4 exits: *Fac x2 / Upp x2) History --------- Turn | Location | Event 1 | -11/Scrapyard | Upgraded with Power slot (x1) 1 | -11/Scrapyard | Upgraded with Propulsion slot (x1) 1 | -11/Scrapyard | Upgraded with Utility slot (x1) 1 | -11/Scrapyard | Upgraded with Weapon slot (x1) 3 | -11/Scrapyard | Discovered new exit (range 16) 84 | -11/Scrapyard | Entered Materials 140 | -10/Materials | Discovered new exit (range 13) 194 | -10/Materials | Discovered new exit (range 13) 307 | -10/Materials | Build established: Mutant 354 | -10/Materials | Discovered new exit (range 6) 361 | -10/Materials | Identified exit to Mines 456 | -10/Materials | Entered Mines 590 | -10/Mines | Assisted by bots powering up and referring to "LRC-V3" 711 | -10/Mines | Learned Materials non-interactive machine intel 857 | -10/Mines | Met a Derelict who couldn't figure out how to use a Trap Extractor 928 | -10/Mines | Discovered new exit (range 7) 930 | -10/Mines | Reached level 2 952 | -10/Mines | Identified exit to Materials 986 | -10/Mines | Entered Materials 987 | -9/Materials | Loaded intel: 34 non-interactive machine locations 988 | -9/Materials | Reached level 3 1075 | -9/Materials | Core integrity fell below 50% 1201 | -9/Materials | Discovered new exit (range 15) 1226 | -9/Materials | Upgraded with Utility slot (x1) 1314 | -9/Materials | Identified exit to Materials 1388 | -9/Materials | Core integrity fell below 20% 1399 | -9/Materials | Reached level 4 1757 | -9/Materials | Reached level 5 1795 | -9/Materials | Destroyed 8 combat bots 1846 | -9/Materials | Discovered new exit (range 11) 1862 | -9/Materials | Identified exit to Mines 1863 | -9/Materials | Upgraded with Utility slot (x1) 1898 | -9/Materials | Reached level 6 1930 | -9/Materials | Entered Mines 2034 | -9/Mines | Received a Rocket Launcher from a helpful Derelict 2051 | -9/Mines | Discovered exit to Materials (range 8) 2056 | -9/Mines | Learned location of Storage (-8) 2058 | -9/Mines | Discovered exit to Materials (range 10) 2100 | -9/Mines | Met a Derelict testing a Signal Generator 2109 | -9/Mines | Found Signal Generator 2217 | -9/Mines | Assisted by bots powering up and referring to "LRC-V3" 2224 | -9/Mines | Build established: Hacker-Scout 2258 | -9/Mines | Reached level 7 2287 | -9/Mines | A Derelict revealed a hidden shortcut to a safe place 2314 | -9/Mines | Deemed a non-threat by the Exiles lab entrance 2314 | -9/Mines | Discovered new exit (range 5) 2316 | -9/Mines | Identified exit to Exiles 2351 | -9/Mines | Entered Exiles 2351 | -9/Exiles | Accompanied by 3 allies 2365 | -9/Exiles | Met 8R-AWN 2374 | -9/Exiles | Met EX-HEX 2391 | -9/Exiles | Met EX-BIN 2516 | -9/Exiles | Met EX-DEC 2542 | -9/Exiles | Visited The Gauntlet 2664 | -9/Exiles | Discovered new exit (range 12) 2669 | -9/Exiles | Identified exit to Mines 2704 | -9/Exiles | Entered Mines 2704 | -8/Mines | Accompanied by 3 allies 2816 | -8/Mines | Discovered exit to Materials (range 5) 2941 | -8/Mines | Reached level 8 2971 | -8/Mines | Discovered exit to Materials (range 4) 2989 | -8/Mines | Entered Materials 2991 | -8/Materials | Reached level 9 2991 | -8/Materials | Upgraded with Utility slot (x1) 2991 | -8/Materials | Upgraded with Weapon slot (x1) 3128 | -8/Materials | Reached level 10 3137 | -8/Materials | Core integrity fell below 50% 3160 | -8/Materials | Destroyed 8 combat bots 3166 | -8/Materials | Garrison activated, responded to threat 3230 | -8/Materials | Identified exit to Garrison 3231 | -8/Materials | Entered Garrison 3233 | -8/Garrison | Reached level 11 3234 | -8/Garrison | Upgraded with Utility slot (x1) 3319 | -8/Garrison | Discovered new exit (range 10) 3338 | -8/Garrison | Triggered checkpoint 3345 | -8/Garrison | Identified exit to Storage 3349 | -8/Garrison | Installed Relay Interface Framework 3433 | -8/Garrison | Entered Storage 3500 | -8/Storage | Repaired Airjet 3545 | -8/Storage | Repaired Airjet 3582 | -8/Storage | Reached level 12 3630 | -8/Storage | Identified exit to Recycling 3789 | -8/Storage | Central database locked down 4054 | -8/Storage | Used back door to open Recycling access 4064 | -8/Storage | Entered Recycling 4096 | -8/Recycling | Spotter reported a threat 4098 | -8/Recycling | Spotter reported a threat 4103 | -8/Recycling | Spotter reported a threat 4110 | -8/Recycling | Spotter reported a threat 4133 | -8/Recycling | Spotter reported a threat 4134 | -8/Recycling | Reached level 13 4168 | -8/Recycling | Spotter reported a threat 4191 | -8/Recycling | Spotter reported a threat 4211 | -8/Recycling | Spotter reported a threat 4225 | -8/Recycling | Spotter reported a threat 4225 | -8/Recycling | Spotter reported a threat 4422 | -8/Recycling | Discovered new exit (range 16) 4431 | -8/Recycling | Identified exit to Factory 4434 | -8/Recycling | Spotter reported a threat 4438 | -8/Recycling | Spotter reported a threat 4455 | -8/Recycling | Entered Factory 4457 | -6/Factory | Reached level 14 4499 | -6/Factory | Discovered new exit (range 12) 4552 | -6/Factory | Garrison activated, responded to threat 4670 | -6/Factory | Spotted B-75 Beast 4728 | -6/Factory | Allies destroyed B-75 Beast 4822 | -6/Factory | Found Prototype Launcher 4822 | -6/Factory | Identified Rocket Array 4828 | -6/Factory | Found Faulty Rocket Array 4832 | -6/Factory | Found Rocket Array 4834 | -6/Factory | Found Prototype Processor 4834 | -6/Factory | Identified Exp. Terrain Scan Processor 4889 | -6/Factory | Discovered new exit (range 17) 4892 | -6/Factory | Sucked down chute 4892 | -6/Factory | Entered Waste 4894 | -6/Waste | Reached level 15 4896 | -6/Waste | Spotted C-40 Crusher 4905 | -6/Waste | Spotted C-40 Crusher 4916 | -6/Waste | Warlord forces began an assault 4919 | -6/Waste | Spotted C-40 Crusher 4921 | -6/Waste | Spotted C-40 Crusher 4923 | -6/Waste | Destroyed C-40 Crusher 4927 | -6/Waste | Allies destroyed C-40 Crusher 4931 | -6/Waste | Destroyed C-40 Crusher 4933 | -6/Waste | Allies destroyed C-40 Crusher 4956 | -6/Waste | Spotted C-40 Crusher 4981 | -6/Waste | Spotted C-40 Crusher 5023 | -6/Waste | Discovered new exit (range 10) 5030 | -6/Waste | Identified exit to Factory 5043 | -6/Waste | Entered Factory 5043 | -6/Factory | Accompanied by 7 allies 5045 | -6/Factory | Reached level 16 5093 | -6/Factory | Identified exit to Garrison 5094 | -6/Factory | Entered Garrison 5094 | -6/Garrison | Accompanied by 7 allies 5124 | -6/Garrison | Triggered checkpoint 5128 | -6/Garrison | Reached level 17 5183 | -6/Garrison | Destroyed 9 combat bots 5216 | -6/Garrison | Reached level 18 5258 | -6/Garrison | Triggered checkpoint 5273 | -6/Garrison | Discovered new exit (range 16) 5290 | -6/Garrison | Triggered checkpoint 5396 | -6/Garrison | Identified exit to Factory 5399 | -6/Garrison | Expanded RIF knowledge: Coupler Efficiency 5425 | -6/Garrison | Garrison Relay disabled 5508 | -6/Garrison | Entered Factory 5508 | -6/Factory | Accompanied by 1 ally 5553 | -6/Factory | Reached level 19 5639 | -6/Factory | Discovered new exit (range 14) 6342 | -6/Factory | Discovered new exit (range 14) 6350 | -6/Factory | Discovered new exit (range 14) 6363 | -6/Factory | Upgraded with Weapon slot (x1) 6385 | -6/Factory | Identified exit to Lower Caves 6400 | -6/Factory | Discovered exit to Lower Caves (range 14) 6404 | -6/Factory | Identified exit to Extension 6639 | -6/Factory | Build established: Hacker-Ninja 6676 | -6/Factory | Fabricated Lrn. Terrain Scanner (x1) 6865 | -6/Factory | Entered Extension 6927 | -6/Extension | Reached level 20 7057 | -6/Extension | Rescued a captive Derelict 7069 | -6/Extension | Rescued A7 7128 | -6/Extension | Build established: Hacker-Scout 7149 | -6/Extension | Rescued a captive Derelict 7150 | -6/Extension | Rescued a captive Derelict 7153 | -6/Extension | Rescued a captive Derelict 7158 | -6/Extension | Rescued a captive Derelict 7159 | -6/Extension | Rescued a captive Derelict 7181 | -6/Extension | Discovered new exit (range 24) 7186 | -6/Extension | Spotted B-75 Beast 7197 | -6/Extension | Spotted B-75 Beast 7209 | -6/Extension | Allies destroyed B-75 Beast 7214 | -6/Extension | Allies destroyed B-75 Beast 7237 | -6/Extension | Rescued a captive Derelict 7245 | -6/Extension | Rescued a captive Derelict 7459 | -6/Extension | Discovered new exit (range 19) 7474 | -6/Extension | Discovered new exit (range 8) 7484 | -6/Extension | Identified exit to Factory 7485 | -6/Extension | Identified exit to Cetus 7519 | -6/Extension | Entered Cetus 7519 | -6/Cetus | Accompanied by 18 allies 7524 | -6/Cetus | Acquired a Cetus Manufacturing Module code from A7 7528 | -6/Cetus | Spotted Cetus Guard 7528 | -6/Cetus | Spotted Cetus Guard 7532 | -6/Cetus | Spotted Cetus Guard 7532 | -6/Cetus | Spotted Cetus Guard 7534 | -6/Cetus | Destroyed Cetus Guard 7549 | -6/Cetus | Allies destroyed Cetus Guard 7550 | -6/Cetus | Allies destroyed Cetus Guard 7553 | -6/Cetus | Reached level 21 7553 | -6/Cetus | Allies destroyed Cetus Guard 7576 | -6/Cetus | Upgraded with Propulsion slot (x1) 7633 | -6/Cetus | Central database locked down 7663 | -6/Cetus | Started Cetus Manufacturing Module 7688 | -6/Cetus | Manufactured an Enhanced Grunt 7713 | -6/Cetus | Manufactured an Enhanced Grunt 7714 | -6/Cetus | Discovered exit to Factory (range 17) 7738 | -6/Cetus | Manufactured an Enhanced Grunt 7756 | -6/Cetus | Discovered new exit (range 18) 7763 | -6/Cetus | Manufactured an Enhanced Grunt 7763 | -6/Cetus | Identified exit to Archives 7788 | -6/Cetus | Manufactured an Enhanced Grunt 7799 | -6/Cetus | Spotted Cetus Guard 7800 | -6/Cetus | Spotted Cetus Guard 7805 | -6/Cetus | Spotted Cetus Guard 7809 | -6/Cetus | Allies destroyed Cetus Guard 7811 | -6/Cetus | Spotted Cetus Guard 7812 | -6/Cetus | Discovered exit to Factory (range 18) 7820 | -6/Cetus | Destroyed Cetus Guard 7821 | -6/Cetus | Allies destroyed Cetus Guard 7822 | -6/Cetus | Allies destroyed Cetus Guard 7829 | -6/Cetus | Met Revision 17 7883 | -6/Cetus | Build established: Wizard-Scout 7947 | -6/Cetus | Escorted A7 to Cetus Mainframe 8108 | -6/Cetus | Entered Archives 8108 | -6/Archives | Accompanied by 15 allies 8113 | -6/Archives | Received a hacking code to weaken MAIN.C 8132 | -6/Archives | Unable to access archive contents 8132 | -6/Archives | Discovered new exit (range 17) 8137 | -6/Archives | Unable to access archive contents 8137 | -6/Archives | Discovered new exit (range 18) 8143 | -6/Archives | Unable to access archive contents 8160 | -6/Archives | Unable to access archive contents 8162 | -6/Archives | Discovered exit to Factory (range 13) 8182 | -6/Archives | Identified exit to Hub_04(d) 8268 | -6/Archives | Entered Hub_04(d) 8268 | -6/Hub_04(d) | Accompanied by 11 allies 8269 | -6/Hub_04(d) | Discovered exit to Factory (range 17) 8312 | -6/Hub_04(d) | Discovered exit to Factory (range 22) 8326 | -6/Hub_04(d) | Discovered exit to Factory (range 24) 8360 | -6/Hub_04(d) | Reached level 22 8385 | -6/Hub_04(d) | Discovered exit to Factory (range 24) 8402 | -6/Hub_04(d) | Garrison activated, responded to threat 8474 | -6/Hub_04(d) | Network Hub disabled 8474 | -6/Hub_04(d) | Network Hub disabled 8556 | -6/Hub_04(d) | Spotted Lightning 8556 | -6/Hub_04(d) | Spotted Lightning 8556 | -6/Hub_04(d) | Spotted Lightning 8574 | -6/Hub_04(d) | Spotted Lightning 8576 | -6/Hub_04(d) | Spotted Lightning 8581 | -6/Hub_04(d) | Spotted Lightning 8589 | -6/Hub_04(d) | Destroyed Lightning 8611 | -6/Hub_04(d) | System corruption reached 10% 8621 | -6/Hub_04(d) | Destroyed Lightning 8621 | -6/Hub_04(d) | Destroyed Lightning 8622 | -6/Hub_04(d) | Network Hub disabled 8623 | -6/Hub_04(d) | Core integrity fell below 50% 8629 | -6/Hub_04(d) | Garrison activated, responded to threat 8648 | -6/Hub_04(d) | Destroyed Lightning 8661 | -6/Hub_04(d) | Core integrity fell below 20% 8665 | -6/Hub_04(d) | Destroyed Lightning 8676 | -6/Hub_04(d) | Destroyed Lightning 8686 | -6/Hub_04(d) | Found Prototype Energy Cannon 8686 | -6/Hub_04(d) | Identified EMDS 8700 | -6/Hub_04(d) | Destroyed 8 combat bots 8724 | -6/Hub_04(d) | Found Prototype Device 8724 | -6/Hub_04(d) | Identified EM Dispersion Field 8729 | -6/Hub_04(d) | Found Prototype Processor 8729 | -6/Hub_04(d) | Identified Exp. Targeting Computer 8757 | -6/Hub_04(d) | Found Prototype Device 8757 | -6/Hub_04(d) | Identified Exp. Phase Shifter 8913 | -6/Hub_04(d) | Network Hub disabled 8940 | -6/Hub_04(d) | Disrupted transfer network 8968 | -6/Hub_04(d) | First assault squad dispatched 8989 | -6/Hub_04(d) | Spotted Lightning 8989 | -6/Hub_04(d) | Spotted Lightning 8992 | -6/Hub_04(d) | Spotted Lightning 9020 | -6/Hub_04(d) | Entered Factory 9021 | -5/Factory | Core integrity fell below 50% 9157 | -5/Factory | Identified exit to Upper Caves 9259 | -5/Factory | Discovered new exit (range 9) 9267 | -5/Factory | Identified exit to Factory 9353 | -5/Factory | Discovered exit to Factory (range 21) 9368 | -5/Factory | Build established: Wizard-Skirmisher 9424 | -5/Factory | Reached level 23 9640 | -5/Factory | Upgraded with Propulsion slot (x1) 9895 | -5/Factory | Fabricated Quantum Capacitor? 10107 | -5/Factory | Fabricated Cld. Nuclear Pulse Thruster? 10117 | -5/Factory | Core integrity fell below 20% 10136 | -5/Factory | Destroyed by G-50 Soldier with Heavy Laser Last Messages --------------- U-05 Engineer lays Concrete. U-05 Engineer builds a Wall. K-01 Serf collects debris. Knocked back. U-05 Engineer builds a Wall. >> FABRICATOR: Completed Cld. Nuclear Pulse Thruster? U-05 Engineer lays Concrete. Slug penetrates P-70 Sage. Destroyed Antigrav System. Destroyed Hpw. Shock Rifle. System corrupted: Matter fused (-6). Slug penetrates G-50 Soldier. G-50 Soldier destroyed. Slug penetrates G-67 Veteran. G-67 Veteran suffers critical hit. Destroyed Flexi-carbon Leg. System corrupted: Imp. KE Penetrator targeting data glitched. Slug penetrates B-60 Warrior. P-70 Sage suffers critical hit. P-70 Sage destroyed. Map ----- +----------------------------------------------------+ | ??#???????# """"""""???# ???? | | ? ????????# ??# #???? | | ????????????# ??# ###########+??????? | | ????????????# !!! ?# #?????????????????? | | ????????????+ !!! ?# #?????????????????? | | ????????????# !!! # #?????????????????? | | ????????????# # +?????????????????? | | ???? ??????# + #?????????????????? | | ???? ??????? """"""""" #k #?????????????????? | | ???? ?????????? # #?????????????????? | | ????! ?????????########### #?????????????????? | | ???? ????????????# #?????????????????? | | ???? ????????????# #?????????????????? | | ???? ????????????# #?????????????????? | | ???? ????????????# #?????????????????? | | ???? #?########### #????????????k????? | | ???? #?# # #;##+;####???????????????? | | ????# #?#"" # # #???????????????? | | ##### #?#"F! """ # # #???????????????? | | # #?#"" ! """ # # #??????????k????? | | # #?#"" """ # # g #???????????????? | | # #?# / +=%g #???????????????? | | # #?# *! # #%p= [ #???????????????? | | "" # #?# =%= # #*! #???????????????? | | "" # ### ###+## # #b #???????????????? | | "" # % #@ #???????????????? | | ""[ # ##########???????????????? | | ""[ = """ #???????????????????????? | | "" [# """ " u #???????????????????????? | | " =!# """ "k" u #???????????????????????? | | [!*]# " #???????????????????????? | | ""### !! #???????????????????????? | | !! #???????????????????????? | | !!* # ??????????????????????? | | %! ####?????????????????????? | | """ ????????????????k?????? | | """ ?????????????????????? | | ### % """ !%= ????????????????????? | | ??# = u ???????????????????? | | ### """ #??????????????????? | | = """ #??????????????????? | | === """ #??????????????????? | | == #??????????????????? | | ! """ " #??????????????????? | | """ """ ?Y?????????????????? | | ! """ """ "" ?????????????????????? | | ???????????????????????? | | ????????????????????????????? | | "" #########+##????????????????????????????????? | | ^"" #???????????????????????????????????????????? | +----------------------------------------------------+ Best States ------------- Heat Dissipation 91 Energy Generation 51 Energy Capacity 420 Matter Stores 500 Matter Capacity 500 Sight Range 18 Robot Scan Range 22 Terrain Scan Range 24 Terrain Scan Density 1010 Jamming Range 8 Cloak Strength 3 Additional Mass Support 9 Armor Coverage 225 Resistance: EM 75 Phase Shifting 20 Evasion (%) 68 Targeting Accuracy 12 Particle Charging 25 Offensive Hacking 62 Defensive Hacking 29 Item Schematics ----------------- Arm. Huge Wheel | -6/Factory | Extracted Lrn. Terrain Scanner | -6/Factory | Hacked Recoil Stabilizer | -6/Factory | Extracted Point Defense Array | -6/Hub_04(d) | Hacked Exp. Signal Interpreter | -5/Factory | Hacked Cld. Nuclear Pulse Thruster | -5/Factory | Hacked Quantum Capacitor | -5/Factory | Hacked Imp. Cloaking Device | -5/Factory | Scanalyzed EM Dispersion Field | -5/Factory | Scanalyzed Field Propulsion Drive | -5/Factory | Scanalyzed Robot Schematics ------------------ K-01 Serf | -8/Recycling | Hacked Fabricated ------------ Lrn. Terrain Scanner | x1 | -6/Factory Quantum Capacitor | x2 | -5/Factory Cld. Nuclear Pulse Thruster | x1 | -5/Factory Alien Tech Used ----------------- None Achievements -------------- Generalissimo Main Advantage Challenges ------------ None RPGLIKE | -11 -10 -10 -9 -9 -9 -8 -8 -8 -8 -8 -6 -6 -6 -6 -6 -6 -6 -6 -6 -5 --------- Run | Scr Mat Min Mat Min Exi Min Mat Gar Sto Rec Fac Was Fac Gar Fac Ext Cet Arc Hub Fac Levels Raised 22 | . . 1 4 1 . 1 2 1 1 1 1 1 1 2 1 1 1 . 1 1 XP Earned 36644 | 3000 435 1325 5895 1411 200 1312 3839 1232 1716 1104 2479 260 1500 3439 1766 1794 1108 225 1364 1240 XP Spent 35955 | 2975 . 525 6815 1530 . . 2700 3340 1500 1250 1840 1500 . 900 4820 1580 1400 . 1280 2000 Upgrades 94 | 9 . 4 23 7 . . 4 7 3 1 6 1 . 2 10 4 2 . 8 3 Power Slot 1 | 1 . . . . . . . . . . . . . . . . . . . . Propulsion Slot 3 | 1 . . . . . . . . . . . . . . . . 1 . . 1 Utility Slot 5 | 1 . . 2 . . . 1 1 . . . . . . . . . . . . Weapon Slot 3 | 1 . . . . . . 1 . . . . . . . 1 . . . . . Core Integrity 18 | . . . 6 . . . . 2 . . . . . . 2 . . . 8 . Heat Dissipation 11 | . . . 4 . . . . . . . 4 . . . 1 2 . . . . Energy Generation 2 | . . . . 1 . . . . . . . . . . 1 . . . . . Matter Storage 1 | . . . . . . . . . . . . . . . . . . . . 1 Mass Support 7 | . . . 1 . . . . . 2 . . . . 2 . . 1 . . 1 Inventory Capacity 6 | 2 . . 2 . . . . . . 1 . 1 . . . . . . . . Sight Range 2 | . . . . . . . 1 . . . . . . . . 1 . . . . Sensor Range 11 | 3 . 2 2 3 . . . . . . . . . . 1 . . . . . Terrain Scan Density 10 | . . 1 3 2 . . . 2 . . . . . . 2 . . . . . Ranged Accuracy 5 | . . . . . . . 1 2 . . 1 . . . . 1 . . . . Hack Attack % 6 | . . 1 3 . . . . . 1 . . . . . 1 . . . . . Hack Defense % 3 | . . . . 1 . . . . . . 1 . . . 1 . . . . . Protomatter Created 3411 | . 85 . 224 57 . 47 113 154 213 12 166 98 . 263 398 496 149 . 771 165 Integrity Restored 6997 | . 41 . 462 483 . 324 240 462 639 . 355 273 . 784 573 803 640 . 585 333 Core 5976 | . 41 . 462 483 . 324 240 462 609 . 230 200 . 598 508 574 327 . 585 333 Parts 1021 | . . . . . . . . . 30 . 125 73 . 186 65 229 313 . . . Protomatter Decayed 2776 | . . 47 50 . . 107 49 . . 16 93 . . 260 267 415 371 70 977 54 Game ------ Seed ShieldControlCapacitor Manual? 0 Play Time 02:57:31 Cumulative 70.9 hours Start 2019.12.17 @ 02:40:15 End 2019.12.17 @ 05:47:23 Sessions 1 Manual Loads 0 Difficulty Rogue Special Mode Winter2019/RPGLIKE Game No. 182 Rogue 182 Adventurer 0 Explorer 0 Win Type - Total 1 Types 1/0/0/0/0/0/0 Lore% 66 Gallery% 63 Achievement% 52 Wizard Run 0 Options --------- ASCII 0 Keyboard 0 Movement Numpad Keybinds 0 Fullscreen 1 Font 24/Smallcaps Map View 76x50 Tactical HUD 0 Map Filters NONE Filters NONE Steam 1 RUN: 9526f6e5-279e-4272-900a-ca1cdfc3dcf5